[Event "Mongolian Championship Women 2022"]
[Site "Chingis Khentii"]
[Date "2022.05.22"]
[Round "10.5"]
[White "Khulan, Enkhsaikhan"]
[Black "Anu, Bayar"]
[Result "1/2-1/2"]
[ECO "E68"]
[WhiteElo "2111"]
[BlackElo "2102"]
[Annotator "TA"]
[PlyCount "152"]
[EventDate "2022.05.12"]
[EventType "tourn"]
[EventCountry "MGL"]
[SourceTitle "playchess.com"]
[Source "ChessBase"]
[SourceQuality "1"]
[TimeControl "40/5400+30:1800+30"]

{[%evp 27,152,32,51,54,56,-23,47,35,44,21,24,0,42,52,107,123,108,0,0,-16,79,6,19,19,102,25,26,42,32,35,165,79,78,81,80,79,79,72,72,79,85,58,228,137,138,163,273,254,305,298,305,0,0,0,0,0,0,0,0,-19,-19,-27,0,0,0,0,0,0,0,0,0,0,0,0,0,0,0,0,0,0,0,0,0,0,0,0,0,0,0,0,0,0,0,0,0,0,0,0,0,0,0,0,0,0,0,0,0,0,0,0,0,0,0,0,0,0,0,0,0,0,0,0,0,0,0,0,0]} 1. d4 {[%emt 0:00:26]} Nf6 {[%emt 0:00:04]} 2. Nf3 {[%emt 0:00:07]} g6 {[%emt 0:00:19]} 3. g3 {[%emt 0:00:08]} Bg7 {[%emt 0:00:31]} 4. Bg2 {[%emt 0:00:18]} O-O {[%emt 0:00:06]} 5. O-O {[%emt 0:00:07]} d6 {[%emt 0:00:04]} 6. c4 {[%emt 0:00:08]} Nbd7 {[%emt 0:00:03]} 7. Nc3 {[%emt 0:00:12]} e5 {[%emt 0:00:03]} 8. e4 {[%emt 0:00:16]} exd4 {[%emt 0:00:09]} 9. Nxd4 {[%emt 0:00:21]} Re8 {[%emt 0:00:18]} 10. h3 {[%emt 0:00:07]} a6 {[%emt 0:00:17]} 11. Rb1 {[%emt 0:00:20]} Rb8 {[%emt 0:00:34]} 12. Re1 {[%emt 0:01:06]} Ne5 {[%emt 0:00:12]} 13. b3 {[%emt 0:00:10]} c5 {[%emt 0:00:53]} 14. Nc2 {[%emt 0:00:15]} Nc6 {[%emt 0:00:34]} 15. a4 {[%emt 0:01:53] Inhibits b5. E68: King's Indian: Fianchetto: 6...Nbd7 7 0-0 e5 8 e4.} Be6 {[%emt 0:01:05]} 16. Be3 {[%emt 0:04:47]} (16. Qd2 $14) 16... Qa5 {[%emt 0:02:14]} (16... Qd7 $11) 17. Bd2 {[%emt 0:04:17] White is slightly better.} Qd8 {[%emt 0:06:02]} 18. Kh2 {[%emt 0:05:12]} h5 {[%emt 0:06:46]} 19. f4 {[%emt 0:04:40] [#]} Nd4 $146 {[%emt 0:12:29]} ({Predecessor:} 19... Qc8 20. Rf1 Bd7 21. Be1 Nd4 22. Bf2 h4 23. gxh4 Nh5 24. Nxd4 Nxf4 25. Nde2 Nxg2 26. Kxg2 Bxh3+ {1-0 (55) Ju,W (2500)-Huang,Q (2439) China 2010}) 20. Be3 {[%emt 0:05:33]} Qa5 {[%emt 0:16:28]} (20... Nc6 $14) 21. Nxd4 $16 {[%emt 0:04:42]} (21. Bxd4 cxd4 22. Ne2 h4 $14) 21... Qxc3 {[%emt 0:02:49]} 22. Nc2 {[%emt 0:01:34]} (22. Rc1 $16 Bg4 23. Nf3 (23. Rxc3 Bxd1 24. Rxd1 Nxe4 $16) (23. hxg4 Nxg4+ 24. Qxg4 hxg4 $14) 23... Bxf3 24. Bxf3 (24. Rxc3 Bxd1 25. Rxd1 Nxe4 $17)) 22... h4 $11 {[%emt 0:03:05]} 23. g4 {[%emt 0:03:32]} (23. gxh4 $5 {[%cal Re3d2]} Nh5 24. f5 $11) 23... g5 {[%emt 0:10:36]} (23... b5 $11 24. Bf3 Nxe4 25. Bxe4 bxc4 26. bxc4 (26. Qxd6 $2 cxb3 27. Qd2 Bc4 $19) 26... Rxb1 27. Qxb1 Bxc4) 24. Qd2 {[%emt 0:07:39]} (24. Kh1 $16) 24... Qxd2 {[%emt 0:05:58]} 25. Bxd2 {[%emt 0:00:08]} b5 {[%emt 0:00:43]} (25... Nh7 $11) 26. f5 {[%emt 0:04:02]} (26. fxg5 $6 Nd7 $11) (26. e5 $16 dxe5 27. f5 (27. fxe5 Nd7 $11) (27. fxg5 Nh7 $14) (27. Rxe5 $2 bxa4 28. Rxg5 Rxb3 $19)) 26... Bd7 {[%emt 0:01:03] Hoping for ...bxc4.} 27. axb5 {[%emt 0:02:55]} axb5 {[%emt 0:00:07]} 28. Bxg5 {[%emt 0:01:00]} Bc6 {[%emt 0:01:15]} ({Black should try} 28... bxc4 $14 29. bxc4 Rxb1 30. Rxb1 Nxe4 31. Bxh4 Nd2) 29. Bxh4 {[%emt 0:12:33]} (29. e5 $1 $18 {[%cal Re5f6] has better winning chances.} Bxg2 30. exf6 (30. Kxg2 Rxe5 31. Rxe5 dxe5 $16)) 29... bxc4 {[%emt 0:02:23]} 30. bxc4 {[%emt 0:01:51][%cal Oe4e5] Strongly threatening e5!} Rxb1 {[%emt 0:01:53]} 31. Rxb1 {[%emt 0:00:05][%cal Oe4e5] e5! is the strong threat.} Bxe4 {[%emt 0:01:03] [#]} 32. Rc1 {[%emt 0:04:19]} Bxg2 {[%emt 0:03:34]} 33. Kxg2 {[%emt 0:01:23]} Re4 {[%emt 0:00:28]} 34. Ne1 {[%emt 0:06:27]} Nh5 $2 {[%emt 0:06:21]} 35. Bf2 {[%emt 0:02:36]} ({And not} 35. gxh5 Rxh4 36. Nf3 Rxh5 $11) 35... Bh6 {[%emt 0:02:59] [#]} 36. Rc2 {[%emt 0:00:57]} Nf4+ {[%emt 0:03:39]} (36... Nf6 $142 37. Nd3 Kh8) 37. Kf3 $18 {[%emt 0:02:24]} Re8 {[%emt 0:00:33]} 38. h4 {[%emt 0:03:27] Black must now prevent g5.} f6 {[%emt 0:02:21] Inhibits g5.} 39. Be3 $2 {[%emt 0:05:29]} (39. Rc3 $18) 39... Nd3 $1 $11 {[%emt 0:02:29]} 40. Ng2 {[%emt 0:00:00]} Bxe3 {[%emt 0:00:00]} 41. Re2 $1 {[%emt 0:04:01]} Ne5+ {[%emt 0:06:54]} 42. Kxe3 {[%emt 0:00:20]} Nxg4+ {[%emt 0:01:21][%mdl 4096] Endgame KRN-KRN} 43. Kd2 {[%emt 0:00:54]} Ne5 {[%emt 0:04:09]} 44. Kc3 {[%emt 0:01:04]} Kf7 {[%emt 0:01:25]} 45. Ra2 {[%emt 0:02:01] The position is equal.} Kg7 {[%emt 0:03:42]} 46. Nf4 {[%emt 0:01:11]} Nf3 {[%emt 0:02:49]} 47. Ne6+ {[%emt 0:04:48]} Kh6 {[%emt 0:01:14]} 48. Rf2 {[%emt 0:02:08]} Nd4 {[%emt 0:10:34]} 49. Nxd4 {[%emt 0:02:26]} cxd4+ {[%emt 0:00:02]} ({But not} 49... Re3+ 50. Kd2 cxd4 51. Rf4 $16) 50. Kxd4 {[%emt 0:00:08] Threatens to win with Kd5. KR-KR} Re5 {[%emt 0:00:04]} 51. Rf1 {[%emt 0:02:02]} Kh5 {[%emt 0:00:13]} 52. Rf4 {[%emt 0:00:14]} Rc5 {[%emt 0:00:02]} 53. Re4 {[%emt 0:04:10]} Rxf5 {[%emt 0:03:15]} 54. Re6 {[%emt 0:00:16]} Kxh4 {[%emt 0:01:31]} 55. Rxd6 {[%emt 0:00:10]} Rf1 {[%emt 0:00:26]} 56. c5 {[%emt 0:00:44][%cal Bc4c5,Bc5c6,Bc6c7][%mdl 32]} Kg5 {[%emt 0:03:33]} 57. Rd5+ {[%emt 0:04:29]} f5 {[%emt 0:00:41]} 58. c6 {[%emt 0:01:43] Intending c7 and mate.} Rc1 {[%emt 0:00:29]} 59. Rc5 {[%emt 0:00:27]} Rd1+ {[%emt 0:00:05]} 60. Ke5 {[%emt 0:00:19] Threatening mate with c7.} Rd8 $1 {[%emt 0:01:57]} 61. c7 {[%emt 0:01:13]} Rc8 {[%emt 0:00:10]} 62. Rc6 {[%emt 0:14:59]} f4 {[%emt 0:00:44]} 63. Ke4 {[%emt 0:01:40]} Re8+ {[%emt 0:01:29]} 64. Kf3 {[%emt 0:01:38]} Rc8 {[%emt 0:00:24]} 65. Ke4 {[%emt 0:00:16]} Re8+ {[%emt 0:00:03]} 66. Kd4 {[%emt 0:01:03]} Rc8 $1 {[%emt 0:00:07]} 67. Ke4 {[%emt 0:01:10]} Re8+ {[%emt 0:00:02]} 68. Kd5 {[%emt 0:00:17]} Rc8 {[%emt 0:00:08]} 69. Ke6 {[%emt 0:00:22]} f3 {[%emt 0:00:39]} 70. Kd7 {[%emt 0:00:09]} Rxc7+ {[%emt 0:01:09]} 71. Rxc7 {[%emt 0:00:48] KR-KP} f2 {[%emt 0:00:23]} 72. Rc1 {[%emt 0:00:04] White wants to mate with Rf1.} Kg4 {[%emt 0:00:38]} 73. Ke6 {[%emt 0:00:08]} Kg3 {[%emt 0:00:08]} 74. Ke5 {[%emt 0:00:10]} Kg2 {[%emt 0:00:08]} 75. Ke4 {[%emt 0:00:05]} f1=Q {[%emt 0:00:10]} 76. Rxf1 {[%emt 0:00:09]} Kxf1 {[%emt 0:00:04] Black escapes into a draw.  Weighted Error Value: White=0.28 (precise) /Black=0.29 (precise)} 1/2-1/2

[Event "Mongolian Championship Women 2022"]
[Site "Chingis Khentii"]
[Date "2022.05.22"]
[Round "10.6"]
[White "Munkhzul, Turmunkh"]
[Black "Bayarmaa, Bayarjargal"]
[Result "1/2-1/2"]
[ECO "B51"]
[WhiteElo "2294"]
[BlackElo "2124"]
[Annotator "TA"]
[PlyCount "178"]
[EventDate "2022.05.12"]
[EventType "tourn"]
[EventCountry "MGL"]
[SourceTitle "playchess.com"]
[Source "ChessBase"]
[SourceQuality "1"]
[TimeControl "40/5400+30:1800+30"]

{[%evp 10,178,16,12,24,21,0,15,38,39,43,43,44,29,23,32,61,31,43,-15,21,19,20,27,53,53,53,49,51,44,52,33,42,52,86,87,100,103,96,88,88,90,80,83,92,83,99,79,92,40,48,30,28,18,20,20,56,56,58,12,12,12,12,12,13,0,8,0,0,0,0,0,0,0,31,0,0,0,0,0,0,0,0,-5,-5,-20,-20,-20,0,0,0,0,0,0,0,0,0,0,0,0,0,0,0,0,0,0,0,0,0,0,0,0,0,0,0,0,0,0,0,0,0,0,0,0,0,0,0,0,6,6,6,0,64,0,0,0,0,0,0,0,6,6,6,6,6,6,6,6,6,6,6,6,6,6,6,6,6,0,6,6,6,6,6,0,6,0,6,0,6,0,8]} 1. e4 {[%emt 0:00:03]} c5 {[%emt 0:00:05]} 2. Nf3 {[%emt 0:00:17]} d6 {[%emt 0:00:06]} 3. Bb5+ {[%emt 0:00:16]} Nd7 {[%emt 0:01:13]} 4. d4 {[%emt 0:00:21]} cxd4 {[%emt 0:00:10]} 5. Qxd4 {[%emt 0:00:14]} a6 {[%emt 0:00:50]} 6. Bxd7+ {[%emt 0:00:32]} Qxd7 {[%emt 0:00:29] B51: Sicilian: Moscow Variation (3 Bb5+) without 3...Bd7.} 7. c4 {[%emt 0:02:58]} e5 {[%emt 0:02:07]} 8. Qd3 {[%emt 0:00:48]} Nf6 {[%emt 0:02:03]} 9. Nc3 {[%emt 0:01:31]} Be7 {[%emt 0:02:09][%cal Ob7b5]} 10. Bg5 {[%emt 0:04:37]} O-O {[%emt 0:01:49]} 11. Rd1 {[%emt 0:02:43][%cal Of3e5] [#]} b5 $146 {[%emt 0:14:15]} ({Predecessor:} 11... Rd8 12. Bxf6 Bxf6 13. Nd5 Qg4 14. c5 Kh8 15. Ne3 Qe6 16. b3 Rd7 17. cxd6 Be7 {1-0 (28) Prendes Veiga,L-Garcia Fernandez,J (2125) Asturias 1998}) 12. c5 {[%emt 0:16:08][%cal Rc5d6]} b4 {[%emt 0:00:39]} 13. cxd6 {[%emt 0:12:41]} (13. Bxf6 gxf6 14. Nd5 (14. cxd6 bxc3 15. dxe7 Qxe7)) (13. Bxf6 $5 gxf6 14. Nd5 (14. cxd6 bxc3 15. dxe7 Qxe7 $14) 14... dxc5 15. Nh4 $14) 13... Qxd6 {[%emt 0:00:59]} 14. Bxf6 {[%emt 0:15:53]} ({White should try} 14. Qxd6 $14 Bxd6 15. Bxf6 (15. Rxd6 bxc3 16. Bxf6 cxb2 $15) 15... bxc3 {[#]} 16. bxc3 $1 (16. Rxd6 cxb2 17. Rb6 gxf6 $15)) 14... Qxf6 {[%emt 0:05:28]} 15. Nd5 {[%emt 0:00:24]} Qd6 {[%emt 0:00:13]} 16. Nd2 {[%emt 0:03:59]} Bd8 {[%emt 0:03:41]} 17. Nc4 $36 {[%emt 0:01:03][%mdl 2048] White has the initiative. Pair of Knights!} Qb8 {[%emt 0:01:17]} 18. O-O {[%emt 0:01:58]} a5 {[%emt 0:00:30]} 19. Rc1 {[%emt 0:02:11]} (19. Qg3 {feels hotter.} f6 20. Rc1 Be6 21. Rfd1) 19... Be6 {[%emt 0:12:56]} 20. Nce3 {[%emt 0:03:39]} Qa7 {[%emt 0:03:36]} 21. Rfd1 {[%emt 0:01:19]} Rc8 {[%emt 0:02:13]} (21... Bg5) 22. Rxc8 {[%emt 0:04:06]} Bxc8 {[%emt 0:01:36] [#]} 23. Nxb4 $1 {[%emt 0:00:37]} axb4 {[%emt 0:09:16]} 24. Qxd8 {[%emt 0:00:15]} Qxa2 {[%emt 0:01:12]} 25. Qe7 {[%emt 0:00:26][%csl LRb4,LRe5] White threatens Rd8 and mate.} Qa5 {[%emt 0:01:51] Inhibits Rd8.} (25... Qxb2 26. Rd8 Qc1+ 27. Nf1 h6 28. Rxf8+ Kh7 29. Qxf7 Qf4 30. Qg8+ Kg6 31. Rxf4) (25... Qxb2 26. Rd8 Qc1+ 27. Nf1 h6 28. Rxf8+ Kh7 29. Qxf7 Qf4 30. Qg8+ Kg6 31. Rxf4) 26. Nd5 {[%emt 0:02:51]} Qa4 {[%emt 0:09:11][%cal Ra4d1]} 27. Rc1 {[%emt 0:01:14][%cal Oe7f8] Hoping for Qxf8+! 0x0.001a28185118dp-1022s more active pieces.} Be6 {[%emt 0:00:23]} 28. Qxb4 {[%emt 0:05:40]} ({Resist} 28. Nxb4 Qb3 $14) 28... Ra8 {[%emt 0:05:02][%cal Bf8a8,Ba8a4,Ba4b4][%mdl 32]} 29. Qxa4 {[%emt 0:04:08]} (29. f3 $16) 29... Rxa4 $16 {[%emt 0:00:14][%mdl 4096] Endgame KRB-KRN} 30. Nc3 {[%emt 0:00:23]} Rb4 {[%emt 0:00:29]} 31. Rd1 {[%emt 0:00:29][%cal Rd1d8]} g6 {[%emt 0:01:43]} 32. Rd2 {[%emt 0:00:25]} f5 {[%emt 0:03:46]} 33. exf5 {[%emt 0:02:37]} gxf5 {[%emt 0:00:25]} 34. f3 {[%emt 0:00:21]} (34. Re2) (34. Re2 $14) 34... Kf7 $11 {[%emt 0:00:12]} 35. Kf2 {[%emt 0:01:19]} h5 {[%emt 0:00:17]} 36. Ne2 {[%emt 0:00:48]} Kf6 {[%emt 0:01:38]} 37. Nc3 {[%emt 0:02:26]} Kg5 {[%emt 0:01:16]} 38. Nd1 {[%emt 0:00:37]} Bb3 {[%emt 0:03:55]} 39. Ne3 {[%emt 0:00:27]} h4 {[%emt 0:03:00]} 40. Re2 {[%emt 0:00:00]} Rb5 {[%emt 0:00:00]} 41. Re1 {[%emt 0:05:30]} f4 {[%emt 0:05:24]} 42. Nf1 {[%emt 0:04:24]} (42. Ng4 $5 {[%cal Re1e5]} Kf5 43. Kg1 $11) 42... Bc4 {[%emt 0:00:41]} 43. b4 {[%emt 0:00:06]} Bd3 {[%emt 0:04:13]} 44. Rd1 {[%emt 0:11:24]} Bf5 {[%emt 0:00:36]} 45. Re1 {[%emt 0:02:10]} Kf6 {[%emt 0:00:15]} 46. h3 {[%emt 0:01:31]} Rxb4 {[%emt 0:00:15]} 47. Nh2 {[%emt 0:00:07]} Rb2+ {[%emt 0:00:33]} 48. Kg1 {[%emt 0:00:20]} Rb5 {[%emt 0:02:17]} 49. Ng4+ {[%emt 0:00:21]} Ke6 {[%emt 0:00:35]} 50. Kh2 {[%emt 0:00:23]} Bxg4 {[%emt 0:01:20]} 51. hxg4 {[%emt 0:00:10] KR-KR} Kf6 {[%emt 0:00:04]} 52. Kh3 {[%emt 0:00:14]} Kg5 {[%emt 0:00:04]} 53. Re4 {[%emt 0:00:13]} Rc5 {[%emt 0:00:11]} 54. Kh2 {[%emt 0:00:13]} Rb5 {[%emt 0:00:26]} 55. Rc4 {[%emt 0:00:16]} Rb2 {[%emt 0:02:59]} 56. Rc5 {[%emt 0:00:31]} Re2 {[%emt 0:00:20]} 57. Ra5 {[%emt 0:00:19]} Re1 {[%emt 0:00:16]} 58. Ra8 {[%emt 0:00:49]} Re2 {[%emt 0:05:50]} 59. Re8 {[%emt 0:00:55]} Re1 {[%emt 0:00:36]} 60. Rg8+ {[%emt 0:00:24]} Kf6 {[%emt 0:00:17]} 61. Rh8 {[%emt 0:01:30]} Kg5 {[%emt 0:04:15]} 62. Rh5+ {[%emt 0:01:27]} Kg6 $1 {[%emt 0:00:01]} 63. Rxh4 {[%emt 0:00:31]} e4 {[%emt 0:01:47]} 64. Rh5 {[%emt 0:04:24] Threatens to win with Rf5.} e3 {[%emt 0:01:16]} 65. Re5 {[%emt 0:00:07]} Rf1 {[%emt 0:00:11]} 66. Re4 {[%emt 0:01:17]} Kg5 {[%emt 0:00:09]} 67. Re6 {[%emt 0:00:30]} Rf2 {[%emt 0:02:17]} 68. Kg1 {[%emt 0:00:18]} Rb2 {[%emt 0:00:16]} 69. Re5+ {[%emt 0:00:23]} Kg6 {[%emt 0:00:07]} 70. Re4 {[%emt 0:00:47]} Rb1+ {[%emt 0:00:14]} 71. Kh2 {[%emt 0:00:04] aiming for g3.} Rf1 $1 {[%emt 0:00:10] The position is equal.} 72. Re8 {[%emt 0:02:01]} Kg5 {[%emt 0:00:19]} 73. Re6 {[%emt 0:00:06]} Rf2 {[%emt 0:00:09]} 74. Kg1 {[%emt 0:00:36]} Rb2 {[%emt 0:00:05]} 75. g3 {[%emt 0:01:53]} fxg3 {[%emt 0:00:41] ( -> ...e2)} 76. Re5+ {[%emt 0:00:05]} Kf6 {[%emt 0:00:50]} 77. Rxe3 {[%emt 0:00:11]} Rf2 {[%emt 0:00:41]} 78. Ra3 {[%emt 0:01:04]} Kg6 {[%emt 0:01:33]} 79. Ra6+ {[%emt 0:00:12]} Kg7 {[%emt 0:00:08]} 80. Ra7+ {[%emt 0:01:09]} Kg6 {[%emt 0:00:08]} 81. Ra3 {[%emt 0:00:19]} Kf6 {[%emt 0:00:13]} 82. Ra8 {[%emt 0:00:23]} Kg7 {[%emt 0:00:14]} 83. Ra3 {[%emt 0:02:00]} Kf6 {[%emt 0:00:16]} 84. Re3 {[%emt 0:00:03]} Kg6 {[%emt 0:00:11]} 85. Re6+ {[%emt 0:00:18]} Kf7 {[%emt 0:00:14]} 86. Re3 {[%emt 0:00:28]} Kg6 {[%emt 0:00:06]} 87. Re6+ {[%emt 0:00:03]} Kf7 {[%emt 0:00:05]} 88. Re3 {[%emt 0:00:08]} Kg6 {[%emt 0:00:05]} 89. Re6+ {[%emt 0:00:06]} Kf7 {[%emt 0:00:04] Weighted Error Value: White=0.08 (flawless) /Black=0.06 (flawless)} 1/2-1/2

[Event "Mongolian Championship Women 2022"]
[Site "Chingis Khentii"]
[Date "2022.05.23"]
[Round "11.1"]
[White "Nomindalai Tumurbaatar"]
[Black "Mungunzul, Bat-Erdene"]
[Result "1/2-1/2"]
[ECO "C54"]
[WhiteElo "2111"]
[BlackElo "2091"]
[Annotator "TA"]
[PlyCount "28"]
[EventDate "2022.05.12"]
[EventType "tourn"]
[EventCountry "MGL"]
[SourceTitle "playchess.com"]
[Source "ChessBase"]
[SourceQuality "1"]
[TimeControl "40/5400+30:1800+30"]

{[%evp 27,28,0,0]} 1. e4 {[%emt 0:00:09] Fernandez,D} e5 {[%emt 0:00:08]} 2. Nf3 {[%emt 0:00:13]} Nc6 {[%emt 0:00:12]} 3. Bc4 {[%emt 0:00:28]} Bc5 {[%emt 0:00:23]} 4. c3 {[%emt 0:00:50]} Nf6 {[%emt 0:00:31]} 5. d4 {[%emt 0:01:22]} exd4 {[%emt 0:01:06]} 6. cxd4 {[%emt 0:01:26]} Bb4+ {[%emt 0:01:30]} 7. Bd2 {[%emt 0:00:55]} Bxd2+ {[%emt 0:00:50]} 8. Nbxd2 {[%emt 0:00:39]} d5 {[%emt 0:00:41]} 9. exd5 {[%emt 0:02:23]} Nxd5 {[%emt 0:00:14]} 10. Qb3 {[%emt 0:01:20]} Na5 {[%emt 0:00:53]} 11. Qa4+ {[%emt 0:01:19]} Nc6 {[%emt 0:00:39]} 12. Qb3 {[%emt 0:01:16]} Na5 {[%emt 0:00:55]} 13. Qa4+ {[%emt 0:00:52]} Nc6 {[%emt 0:00:11]} 14. Qb3 {[%emt 0:00:43] [#]} Na5 $146 {[%emt 1:29:17]} ({Predecessor:} 14... Nce7 15. O-O O-O 16. Rfe1 c6 17. Ne4 Nb6 18. Bd3 Ned5 19. Nc5 Nf6 20. Rac1 Rb8 21. Qa3 a6 22. Qb3 Qc7 23. Ne4 Nfd5 24. Nc3 Qd6 25. Be4 {½-½ (36) Jones,G (2640)-Karjakin,S (2753) Wijk aan Zee 2018 CBM 183 [Fernandez,D]}) 1/2-1/2

[Event "Mongolian Championship Women 2022"]
[Site "Chingis Khentii"]
[Date "2022.05.23"]
[Round "11.2"]
[White "Altantuya, Boldbaatar"]
[Black "Amin-Erdene, Bayanmunkh"]
[Result "1/2-1/2"]
[ECO "A48"]
[WhiteElo "2263"]
[BlackElo "1425"]
[Annotator "TA"]
[PlyCount "160"]
[EventDate "2022.05.12"]
[EventType "tourn"]
[EventCountry "MGL"]
[SourceTitle "playchess.com"]
[Source "ChessBase"]
[SourceQuality "1"]
[TimeControl "40/5400+30:1800+30"]

{[%evp 11,160,12,35,17,29,7,14,11,36,0,23,0,0,0,0,0,0,0,0,-3,0,0,2,-18,0,-10,36,16,8,4,28,-20,31,25,26,34,45,42,45,31,29,-27,70,63,69,66,68,65,60,66,66,59,59,59,70,60,70,58,65,56,52,48,44,62,53,44,72,61,151,146,208,199,220,197,233,231,215,154,168,167,152,159,162,161,189,164,182,182,202,135,341,335,337,347,439,437,6444,5539,6612,5081,1550,0,0,0,0,0,0,0,0,0,0,0,0,0,0,0,0,-8,-8,-8,-8,-43,0,0,0,-43,-8,-8,-8,-8,-8,-8,-8,-8,-8,-8,-8,-8,-8,-8,-8,-8,-8,-8,-8,-8,-16,-24,-8,-8,-8]} 1. Nf3 {[%emt 0:00:02]} Nf6 {[%emt 0:05:33]} 2. b3 {[%emt 0:01:14]} g6 {[%emt 0:01:08]} 3. Bb2 {[%emt 0:00:12]} Bg7 {[%emt 0:00:15]} 4. e3 {[%emt 0:00:13]} O-O {[%emt 0:00:22]} 5. Be2 {[%emt 0:00:26]} d6 {[%emt 0:01:16]} 6. d4 {[%emt 0:00:10]} c6 {[%emt 0:02:45]} 7. O-O {[%emt 0:00:54] A48: 1 d4 Nf6 2 Nf3 g6: Torre, London and Colle Systems.} Qc7 {[%emt 0:01:07]} 8. Nbd2 {[%emt 0:01:08]} Nbd7 {[%emt 0:12:55]} 9. c4 {[%emt 0:01:07]} c5 {[%emt 0:05:31]} 10. Qc2 {[%emt 0:04:22] [#]} Re8 $146 {[%emt 0:02:05]} ({Predecessor:} 10... cxd4 11. Nxd4 a6 12. Rac1 b6 13. Bf3 Bb7 14. Ne2 Rac8 15. Qb1 Bxf3 16. Nxf3 Qb7 {½-½ (22) Breidenbach,R (1928)-Zelt,J (2004) Germany 2015}) 11. Rad1 {[%emt 0:10:18]} cxd4 {[%emt 0:02:40]} 12. Nxd4 {[%emt 0:00:29]} a6 {[%emt 0:01:49]} 13. b4 {[%emt 0:03:03]} b6 {[%emt 0:06:30]} 14. Qb3 {[%emt 0:08:15]} Bb7 {[%emt 0:01:54]} 15. Rc1 {[%emt 0:05:45]} Rac8 {[%emt 0:02:41]} 16. Rfd1 {[%emt 0:01:46]} Ne5 {[%emt 0:07:05]} 17. f3 {[%emt 0:02:15]} Qb8 {[%emt 0:03:31]} 18. e4 {[%emt 0:02:25]} Nc6 {[%emt 0:05:29]} (18... Bh6 $11) 19. Nxc6 {[%emt 0:04:01]} Bxc6 {[%emt 0:00:13]} 20. Bd4 {[%emt 0:00:23]} Nd7 {[%emt 0:01:29]} 21. Be3 {[%emt 0:02:25]} (21. Bxg7 {should be considered.} Kxg7 22. c5) 21... Bb7 {[%emt 0:09:39]} (21... a5 $11) 22. Nb1 $14 {[%emt 0:01:31]} a5 {[%emt 0:11:15]} 23. a3 {[%emt 0:00:27]} Bc6 {[%emt 0:02:18]} 24. Nc3 {[%emt 0:01:05]} Qa7 {[%emt 0:03:34]} 25. Nd5 {[%emt 0:02:32]} axb4 {[%emt 0:02:49]} 26. Qxb4 {[%emt 0:01:45]} (26. axb4 $142 Ra8 27. Qd3) 26... Bxd5 {[%emt 0:00:31]} ({Black should play} 26... Rb8 $11) 27. cxd5 {[%emt 0:00:38]} (27. exd5 Ra8 $15) 27... Rxc1 {[%emt 0:01:19]} 28. Rxc1 {[%emt 0:00:44]} Ra8 {[%emt 0:01:33]} 29. a4 $1 {[%emt 0:02:11] 0x0.00125f7a080ddp-1022s more active pieces.} Nc5 {[%emt 0:00:16]} 30. Bb5 {[%emt 0:00:51]} Qa5 {[%emt 0:00:41]} 31. Qxa5 {[%emt 0:00:48]} ({But not} 31. Bxc5 bxc5 32. Qxa5 Rxa5 $11) 31... Rxa5 {[%emt 0:00:01]} 32. Rc4 {[%emt 0:00:43]} h5 {[%emt 0:01:59]} 33. Bd2 {[%emt 0:02:44]} Ra7 {[%emt 0:00:31]} 34. Rb4 {[%emt 0:02:03]} Bf6 {[%emt 0:01:13]} 35. Kf1 {[%emt 0:01:16]} Kg7 {[%emt 0:00:49]} 36. Ke2 {[%emt 0:00:54]} e6 {[%emt 0:01:52]} 37. Bc6 {[%emt 0:04:19]} Bd8 {[%emt 0:00:50]} 38. Be3 {[%emt 0:04:24][%cal Oe4e5]} Ra5 {[%emt 0:00:38]} 39. e5 {[%emt 0:05:23]} exd5 {[%emt 0:01:10]} (39... dxe5 $14 40. d6 f5) 40. exd6 $16 {[%emt 0:00:00]} Kf6 {[%emt 0:00:00]} (40... Ne6 $16 41. Kd3 (41. Bxb6 Bxb6 42. Rxb6 Nd4+ 43. Kd3 Nxc6 $16) 41... d4) 41. Bxd5 $18 {[%emt 0:03:43] Bd4+ is the strong threat.} Kg7 {[%emt 0:09:38]} 42. Bd4+ {[%emt 0:02:09] This bishop pair is nice.} f6 {[%emt 0:02:23]} 43. Bc6 {[%emt 0:06:03]} Kf7 {[%emt 0:02:14]} 44. Rb5 {[%emt 0:04:40]} Rxb5 {[%emt 0:08:15]} 45. axb5 $16 {[%emt 0:03:30][%mdl 4096] Endgame KBB-KBN} Ke6 {[%emt 0:01:17]} 46. Be8 {[%emt 0:01:43]} g5 {[%emt 0:00:52]} 47. Bxh5 {[%emt 0:05:06]} Kxd6 {[%emt 0:00:11]} 48. g3 {[%emt 0:04:31]} Kd5 {[%emt 0:02:02]} 49. Bf2 {[%emt 0:00:31]} Kc4 {[%emt 0:02:15]} 50. Be8 {[%emt 0:01:15]} Na4 $2 {[%emt 0:04:50]} (50... f5 $16 51. h4 f4 52. Bf7+ (52. h5 Nd3 $16) 52... Kxb5) 51. h4 $18 {[%emt 0:01:17]} gxh4 {[%emt 0:00:04]} 52. gxh4 {[%emt 0:26:51]} Nc3+ 53. Kd2 {[%emt 0:00:00]} Nxb5 {[%emt 0:01:44]} (53... Be7 $142 54. Bf7+ Kb4) 54. Bxb5+ {[%emt 0:00:00]} Kxb5 {[%emt 0:00:01] KB-KB} 55. Kd3 {[%emt 0:00:00]} f5 {[%emt 0:02:03]} 56. f4 $2 {[%emt 0:00:00]} ({Better is} 56. Be1 $18 {White threatens h5 and mate.} Bf6 57. h5) 56... Be7 $11 {[%emt 0:00:51]} 57. h5 {[%emt 0:00:00]} Bf8 {[%emt 0:00:03]} 58. Bh4 {[%emt 0:00:00] [#] Threatens to win with Kd4.} Kc5 {[%emt 0:00:32]} 59. Bg5 {[%emt 0:00:00] Intending h6 and mate.} Kd5 {[%emt 0:00:22]} 60. h6 {[%emt 0:00:00]} Ke6 $1 {[%emt 0:00:16]} 61. Kc4 {[%emt 0:00:00]} Kf7 {[%emt 0:00:33]} 62. Kb5 {[%emt 0:00:00]} Bc5 {[%emt 0:00:25]} 63. Bd8 {[%emt 0:00:00]} Kg6 {[%emt 0:00:12]} 64. Bxb6 {[%emt 0:00:00]} Bd6 {[%emt 0:00:14]} 65. Be3 {[%emt 0:00:00]} Kxh6 {[%emt 0:00:08]} 66. Kc6 {[%emt 0:00:00]} Bb8 {[%emt 0:00:28]} 67. Kb7 {[%emt 0:00:00]} Bd6 {[%emt 0:00:06]} 68. Kc6 {[%emt 0:00:00]} Bf8 {[%emt 0:02:11]} 69. Kd5 {[%emt 0:00:00]} Kh5 {[%emt 0:00:08]} 70. Kd4 {[%emt 0:00:00]} Kg4 {[%emt 0:00:13]} 71. Kd3 {[%emt 0:00:00]} Kf3 {[%emt 0:00:34]} 72. Bb6 {[%emt 0:00:00]} Bd6 {[%emt 0:00:31]} 73. Kd2 {[%emt 0:00:00]} Bxf4+ {[%emt 0:00:22]} 74. Ke1 {[%emt 0:00:00]} Kg2 {[%emt 0:00:05]} 75. Ke2 {[%emt 0:00:00]} Bg5 {[%emt 0:01:42] next ...f4 is good for Black.} (75... Bd6 $5) 76. Bc7 {[%emt 0:00:00]} Bh4 {[%emt 0:00:04] [#] ( -> ...Bg3)} 77. Bf4 {[%emt 0:00:00]} Bg3 {[%emt 0:00:02]} 78. Bg5 {[%emt 0:00:08]} Be5 {[%emt 0:00:17]} 79. Bh6 {[%emt 0:00:13]} f4 {[%emt 0:00:14]} 80. Bxf4 $1 {[%emt 0:00:04]} Bxf4 {[%emt 0:00:02] Black defended with fortune.  Weighted Error Value: White=0.20 (precise) /Black=0.20 (precise)} 1/2-1/2